Workbook

Sheet Лист1
I3: Додаток 2 до рішення міської ради
I7: 26.04.2017 №1597
A9: Перелік завдань і заходів Програми розвитку та утримання житлово-комунального господарства міста на період 2017– 2019 років
A12: № з/п | B12: Назва напряму діяльності (пріоритетні завдання) | C12: Перелік заходів програми | D12: Строк, роки | E12: Виконавці | F12: Джерела фінансу -вання | G12: Орієнтовні обсяги потреби в фінансуванні (вартість), тис. гривень, у тому числі: | K12: Очікуваний результат
G14: 2017 рік | H14: 2018 рік | I14: 2019 рік | J14: Усього
A16: 1 | B16: 2 | C16: 3 | D16: 4 | E16: 5 | F16: 6 | G16: 7 | H16: 8 | I16: 9 | J16: 10 | K16: 11
A22: 1 | B22: 1. Утримання, ремонт, рекон-струкція жит-лового фонду | C22: 1.1. Капітальний ремонт ліфтів | D22: 2017-2019 | E22: Управління благоустрою та житлової політики виконкому Криворізької міської ради | F22: Міський бюджет | G22: 20000 | H22: 25000 | I22: 30000 | J22: =G22+H22+I22 -> 75000 | K22: Гарантування умов безпечного та комфортного проживання насе-лення. Надання об’єднанням спів-власників багато-квартирного бу-динку передба-ченої чинним за-конодавством Ук-раїни технічної та/ або іншої доку-ментації на житло-ві будинки. Без-печне користу-вання ліфтами мешканцями ба-гатоквартирних будинків, їх на-лежна технічна експлуатація та безперебійна ро-бота. Подовження терміну експлуа-тації ліфтів. Покращення еко-логічної ситуації в місті (санітарне очищення). Замі-на старих табли-чок з назвами то-понімів на будин-ках на нові. Під-вищення рівня на-дання населенню житлово-кому-нальних послуг відповідно до вимог національ-них стандартів, гармонізованих з міжнародними або регіональними
C23: 1.2. Експертне обсте-ження ліфтів | D23: 2017-2019 | F23: Міський бюджет | G23: 100 | H23: 120 | I23: 150 | J23: =+G23+H23+I23 -> 370
C24: 1.3. Капітальний, по-точний ремонт та ре- конструкція житлового фонду | D24: 2017-2019 | F24: Міський бюджет | G24: 50000 | H24: 55000 | I24: 60000 | J24: 165000
F25: Власні надхо-дження | G25: 200 | H25: 200 | I25: 200 | J25: 600
C26: 1.4. Охорона об'єктів житлового фонду | D26: 2017-2019 | F26: Міський бюджет | G26: 500 | H26: 500 | I26: 500 | J26: 1500
C27: 1.5. Придбання та вста-новлення аншлагів | D27: 2017-2019 | F27: Міський бюджет | G27: 1500 | H27: 1500 | I27: 1500 | J27: 4500
C28: 1.6. Заходи з енерго-ефективності та енер-гозбереження в житло-вому фонді (поточний ремонт житлових будинків) | D28: 2017-2019 | F28: Субвенція з обласного бюджету бюджетам міст, райо-нів та об’єд-нанням тери-торіальних громад на виконання доручень виборців депутатами обласної ради у 2017 році | G28: 2000 | H28: 0 | I28: 0 | J28: =+G28+H29+I29 -> 2000
F29: Міський бюджет | G29: 2000 | H29: 0 | I29: 0 | J29: =G29 -> 2000
A30: Усього | F30: Міський бюджет | G30: =G22+G23+G24+G26+G27+G29 -> 74100 | H30: =H22+H23+H24+H26+H27 -> 82120 | I30: =I22+I23+I24+I26+I27 -> 92150 | J30: =J22+J23+J24+J26+J27+J29 -> 248370
F31: Власні надхо-дження | G31: =G25 -> 200 | H31: =H25 -> 200 | I31: =I25 -> 200 | J31: =+G31+H31+I31 -> 600
F32: Субвенція з обласного бюджету бюджетам міст, райо-нів та об’єд-нанням тери-торіальних громад на виконання доручень виборців депутатами обласної ради у 2017 році | G32: =G28 -> 2000 | H32: 0 | I32: 0 | J32: =J28 -> 2000
A33: 2 | B33: 2. Комунальне майно | C33: 2.1. Оформлення вис-новку спеціалізованої організації про немож-ливість подальшої екс-плуатації основних за- собів та необоротних активів | D33: 2017-2019 | E33: Управління благоустрою та житлової політики виконкому Криворізької міської ради | F33: Міський бюджет | G33: 15 | H33: 15 | I33: 15 | J33: =+G33+H33+I33 -> 45
C34: 2.2. Інвентаризація, тех-нічна інвентаризація, оцінка об'єктів нерухо-мого майна | D34: 2017-2019 | F34: Міський бюджет | G34: 725 | H34: 725 | I34: 725 | J34: 2175
C35: 2.3. Виготовлення технічної та іншої документації на об'єкти житлового фонду | D35: 2017-2019 | F35: Міський бюджет | G35: 1300 | H35: 1300 | I35: 1300 | J35: 3900
F36: 2 | G36: Продовження додатка 2
A37: 1 | B37: 2 | C37: 3 | D37: 4 | E37: 5 | F37: 6 | G37: 7 | H37: 8 | I37: 9 | J37: 10 | K37: 11
C38: 2.4. Знесення (розби-рання) об'єктів нерухо-мого майна | D38: 2017-2019 | F38: Міський бюджет | G38: 1000 | H38: 500 | I38: 500 | J38: 2000
C39: 2.5. Сплата земельного податку | D39: 2017-2019 | F39: Власні надхо-дження | G39: 500 | H39: 600 | I39: 700 | J39: 1800
C40: 2.6. Судові витрати та оголошення за судовими справами | D40: 2017-2019 | F40: Міський бюджет | G40: 20 | H40: 20 | I40: 20 | J40: 60
C41: 2.7. Висвітлення діяль-ності управління благо-устрою та житлової по-літики виконкому Кри-ворізької міської ради в засобах масової інфор-мації | D41: 2017-2019 | F41: Міський бюджет | G41: 190 | H41: 190 | I41: 190 | J41: 570
C42: 2.8. Реєстрація та пере-реєстрація автотранс-порту (узяття на облік та зняття з нього) | D42: 2017-2019 | F42: Міський бюджет | G42: 10 | H42: 10 | I42: 10 | J42: 30
A43: Усього | F43: Міський бюджет | G43: =G42+G41+G40+G38+G35+G34+G33 -> 3260 | H43: =H42+H41+H40+H38+H35+H34+H33 -> 2760 | I43: 2760 | J43: =J42+J41+J40+J38+J35+J34+J33 -> 8780
F44: Власні надхо-дження | G44: =G39 -> 500 | H44: =H39 -> 600 | I44: =I39 -> 700 | J44: =G44+H44+I44 -> 1800
A45: 3 | B45: 3. Санітарна очистка міста | C45: 3.1. Оформлення права користування земель-ними ділянками під по-лігонами звалищ сміття міста | D45: 2017-2019 | E45: Управління благоустрою та житлової політики виконкому Криворізької міської ради | F45: Міський бюджет | G45: 190 | J45: =G45+H45+I45 -> 190
C46: 3.2. Ліквідація стихійних звалищ | D46: 2017-2019 | F46: Міський бюджет | G46: 190 | H46: 190 | I46: 190 | J46: =G46+H46+I46 -> 570
A47: Усього | F47: Міський бюджет | G47: =G45+G46 -> 380 | H47: =H45+H46 -> 190 | I47: =I45+I46 -> 190 | J47: =G47+H47+I47 -> 760
A60: 4 | B60: 4. Підтримка комунальних підприємств, надавачів пос-луг з теплопос-тачання, водо-постачання та водовідведення | C60: 4.1. Оплата за енерго-носії | D60: 2017-2019 | E60: Управління благоустрою та житлової політики виконкому Криворізької міської ради-головний розпорядник, комунальне підприємство теплових мереж "Кри-воріжтепло-мережа"-одержувач коштів | F60: Міський бюджет | G60: 120000 | H60: 80000 | I60: 40000 | J60: =G60+H60+I60 -> 240000 | K60: Економія теплової та електричної енергії, природ-ного газу, покра-щення якості ви-конання робіт на системі тепло- постачання
C61: 4.2. Придбання теплоізо-ляційних матеріалів | D61: 2017-2019 | F61: Міський бюджет | G61: 5000 | H61: 5000 | I61: 5000 | J61: 15000
C62: 4.3. Придбання блочних автоматизованих паль-ників з частотними пе-ретворювачами | D62: 2017-2019 | F62: Міський бюджет | G62: 5000 | H62: 5000 | I62: 5000 | J62: 15000
C63: 4.4. Реконструкція схеми теплопостачання | D63: 2017-2019 | F63: Міський бюджет | G63: 1500 | H63: 0 | I63: 0 | J63: 1500
C64: 4.5. Демонтаж димової труби котельні "Прорізна, 87" | D64: 2017-2019 | F64: Міський бюджет | G64: 1500 | H64: 0 | I64: 0 | J64: 1500
C65: 4.6. Поповнення статут-ного капіталу на прид-бання обладнання і предметів довгостро-кового користування | D65: 2017-2019 | F65: Міський бюджет | G65: 1420 | H65: 0 | I65: 0 | J65: 1420
C66: 4.7. Поповнення статут-ного капіталу на прид-бання спецтехніки та об-ладнання | D66: 2017-2019 | F66: Міський бюджет | G66: 2450 | H66: 0 | I66: 0 | J66: 2450
C67: 4.8. Оплата за енерго-носії | D67: 2017-2019 | E67: Управління благоустрою та житлової політики виконкому Криворізької міської ради-головний розпорядник, комунальне підприємство "Кривбасво-доканал"-одержувач коштів | F67: Міський бюджет | G67: 30000 | H67: 30000 | I67: 30000 | J67: 90000 | K67: Покращення якості надання послуг з водопос-тачання та водо-відведення. Зни-ження травма-тизму населення, запобігання не-щасним випадкам. Економія енергоресурсів
C68: 4.9. Придбання кришок люків | D68: 2017-2019 | F68: Міський бюджет | G68: 2000 | H68: 2000 | I68: 2000 | J68: 6000
C69: 4.10. Послуги щодо фі-нансового лізингу на придбання спецтехніки | D69: 2017-2019 | F69: Міський бюджет | G69: 14962.672 | H69: 5384.9 | I69: 0 | J69: 20347.572
C70: 4.11. Капітальний ре-монт мереж водопос-тачання та водовідве-дення | D70: 2017-2019 | F70: Міський бюджет | G70: 62408.8 | H70: 0 | I70: 0 | J70: 62408.8
F71: 3 | H71: Продовження додатка 2
A72: 1 | B72: 2 | C72: 3 | D72: 4 | E72: 5 | F72: 6 | G72: 7 | H72: 8 | I72: 9 | J72: 10 | K72: 11
C73: 4.12. Придбання мате-ріалів, обладнання (устаткування) для виконання капітальних ремонтів мереж та споруд водопостачання та водовідведення | D73: 2017-2019 | F73: Міський бюджет | G73: 10520 | H73: 13000 | I73: 17000 | J73: 40520
C74: 4.13. Придбання спец-техніки та спецоблад-нання | D74: 2017-2019 | F74: Міський бюджет | G74: 14738.84 | H74: 0 | I74: 0 | J74: 14738.84
A75: Усього | F75: Міський бюджет | G75: =G60+G61+G62+G63+G64+G65+G66+G67+G69+G70+G73+G74 -> 269500.312 | H75: =H60+H61+H62+H63+H64+H65+H66+H67+H69+H70+H73+H74 -> 138384.9 | I75: =I60+I61+I62+I63+I64+I65+I66+I67+I69+I70+I73+I74 -> 97000 | J75: =G75+H75+I75 -> 504885.212
A76: 5 | B76: 5. Заходи, пов’язані з еко-номічною дія-льністю кому-нального зак-ладу "Дитя-чий оздоровчий табір"Корчагі-нець" | C76: 5.1. Поповнення статут-ного капіталу на прид-бання обладнання і предметів довгостро-кового користування | D76: 2017-2019 | E76: Управління благоустрою та житлової політики виконкому Криворізької міської ради-головний розпорядник, комунальний заклад "Дитя-чий оздоров-чий табір "Корчагінець"-одержувач коштів | F76: Міський бюджет | G76: 300 | H76: 0 | I76: 0 | J76: 300 | K76: Забезпечення умов для оздоровлення дітей та стабільної роботи комунального закладу "Дитячий оздоровчий табір "Корчагінець"
C77: 5.2. Інші заходи, пов'язані з економічною діяльністю закладу | D77: 2017-2019 | F77: Міський бюджет | G77: 500 | H77: 0 | I77: 0 | J77: 500
A78: Усього | F78: Міський бюджет | G78: =G76+G77 -> 800 | H78: =H76+H77 -> 0 | I78: =I76+I77 -> 0 | J78: 800
A79: 6 | B79: 6. Заходи, пов’язані з еко-номічною дія-льністю кому-нального підприємства "Кривбастепло-енерго" | C79: 6.1. Заходи, пов´язані з залученням кредитних ресурсів на впроваджен-ня проектів з енерго-ефективності | D79: 2017-2019 | E79: Управління благоустрою та житлової політики виконкому Криворізької міської ради-головний розпорядник, комунальне підприємство "Кривбастеп-лоенерго"-одержувач коштів | F79: Міський бюджет | G79: 1000 | H79: 1000 | I79: 1000 | J79: =G79+H79+I79 -> 3000 | K79: Реалізація програм пріоритетних інвестицій для підвищення енергоефективності громадських будівель
A80: Усього | F80: Міський бюджет | G80: =G79 -> 1000 | H80: =H79 -> 1000 | I80: 1000 | J80: 3000
A81: Усього за Програмою, у тому числі | F81: Усього | G81: =G82+G83+G84 -> 351740.312 | H81: =H82+H83 -> 225254.9 | I81: =I82+I83 -> 194000 | J81: =J82+J83+J84 -> 770995.212
F82: Міський бюджет | G82: =G30+G43+G47+G75+G78+G80 -> 349040.312 | H82: =H30+H43+H47+H75+H78+H80 -> 224454.9 | I82: =I30+I43+I47+I75+I78+I80 -> 193100 | J82: =J30+J43+J47+J75+J78+J80 -> 766595.212
F83: Власні надход-ження | G83: =G31+G44 -> 700 | H83: =H31+H44 -> 800 | I83: =I31+I44 -> 900 | J83: =G83+H83+I83 -> 2400
F84: Субвенція з обласного бюджету бюджетам міст, райо-нів та об’єд-нанням тери-торіальних громад на виконання доручень виборців депутатами обласної ради у 2017 році | G84: =G32 -> 2000 | J84: =J32 -> 2000
B87: Секретар міської ради | I87: С.Маляренко

Sheet Лист2

Sheet Лист3
